bitfinex/quotes_SOLUSD_20220117
["timestamp","ask_amount","ask_price","bid_price","bid_amount"]
[1642397784528,73.82653215,142.88,142.74,22.9898]
[1642397784731,84.32993215,142.88,142.74,22.9898]
[1642397785730,7.90790944,142.87,142.74,22.9898]
[1642397786033,10.5074,142.84,142.7,70.05]
[1642397786329,46.3986656,142.83,142.72,6.0]
[1642397786531,46.3986656,142.83,142.71,35.28249089]
[1642397786829,52.6486656,142.83,142.71,41.53249089]
[1642397787028,10.5082,142.82,142.71,41.53249089]
[1642397787229,20.6282,142.82,142.71,41.53249089]
[1642397787429,26.8782,142.82,142.71,35.53249089]
[1642397787631,26.6282,142.82,142.71,59.02009089]
[1642397787829,26.8782,142.82,142.71,59.02009089]
[1642397788030,20.8782,142.82,142.71,59.02009089]
[1642397788431,26.8782,142.82,142.71,59.02009089]
[1642397788636,26.8782,142.82,142.71,65.02009089]
[1642397788834,26.8782,142.82,142.71,59.02009089]
[1642397790438,26.6282,142.82,142.71,69.52729089]
[1642397790640,10.5064,142.84,142.72,0.26]
[1642397790836,10.5064,142.84,142.72,34.7419]
[1642397791340,10.5064,142.84,142.73,70.05]
[1642397791537,10.5064,142.84,142.74,14.83617719]
[1642397791738,10.5064,142.84,142.74,15.09617719]
[1642397791937,10.5064,142.84,142.74,22.56319486]
[1642397792138,10.5064,142.84,142.75,22.6617]
[1642397792338,10.5064,142.84,142.75,22.9117]
[1642397792543,35.0237,142.87,142.75,92.9617]
[1642397792841,6.0,142.86,142.76,0.26]
[1642397793039,6.0,142.87,142.76,0.26]
[1642397793438,6.0,142.88,142.76,0.26]
[1642397793641,37.18464361,142.87,142.76,0.26]
[1642397793847,43.18464361,142.87,142.76,0.26]
[1642397794041,37.43464361,142.87,142.76,0.26]
[1642397794240,37.43464361,142.87,142.75,92.9617]
[1642397794439,10.5051,142.86,142.75,92.9617]
[1642397794839,10.5051,142.86,142.75,98.9617]
[1642397795141,10.5051,142.86,142.75,100.17871767]
[1642397796444,10.5051,142.86,142.75,110.68321767]
[1642397797245,10.5036,142.88,142.76,0.26]
[1642397797444,20.49164473,142.88,142.77,10.5031]
[1642397797643,9.98804473,142.88,142.77,10.5031]
[1642397797842,9.98804473,142.88,142.77,10.7531]
[1642397798245,6.0,142.88,142.78,35.28249089]
[1642397798443,6.0,142.88,142.78,46.03469089]
[1642397798645,15.43995608,142.89,142.79,0.26]
[1642397798646,11.31995608,142.89,142.79,0.26]
[1642397798843,11.31995608,142.89,142.79,24.062]
[1642397799244,11.31995608,142.89,142.79,24.312]
[1642397799445,11.31995608,142.89,142.79,100.362]
[1642397799852,9.98804473,142.89,142.8,80.5508]
[1642397800048,9.98804473,142.89,142.81,24.4611]
[1642397800347,9.98804473,142.89,142.81,24.7111]
[1642397800746,9.98804473,142.89,142.82,14.83617719]
[1642397800947,9.98804473,142.89,142.82,15.08617719]
[1642397801147,6.0,142.89,142.82,15.08617719]
[1642397801349,9.98804473,142.9,142.82,15.08617719]
[1642397801551,3.98804473,142.9,142.82,15.08617719]
[1642397801748,9.98804473,142.9,142.82,15.08617719]
[1642397802349,6.0,142.9,142.82,15.08617719]
[1642397802750,20.10804473,142.91,142.82,15.08617719]
[1642397803350,16.12,142.91,142.82,15.08617719]
[1642397805055,20.10804473,142.91,142.82,15.08617719]
[1642397805855,14.48864473,142.92,142.82,91.13617719]
[1642397806055,3.98804473,142.92,142.83,23.0384]
[1642397806355,3.98804473,142.92,142.83,29.2884]
[1642397806555,3.98804473,142.93,142.83,29.2884]
[1642397806759,44.82764279,142.92,142.83,29.2884]
[1642397807882,45.07764279,142.92,142.83,29.2884]
[1642397809885,44.82764279,142.92,142.83,29.2884]
[1642397810686,10.4997,142.93,142.83,29.2884]
[1642397810884,10.7497,142.93,142.83,29.2884]
[1642397811487,10.7497,142.93,142.83,29.0384]
[1642397811689,35.19743033,142.92,142.83,29.0384]
[1642397812287,10.4997,142.93,142.83,29.0384]
[1642397812987,10.4997,142.93,142.83,29.2884]
[1642397816090,10.4997,142.93,142.83,29.0384]
[1642397817495,10.12,142.92,142.83,23.2884]
[1642397817695,10.37,142.92,142.78,33.1814]
[1642397817897,10.5026,142.89,142.79,24.449]
[1642397818497,10.5026,142.89,142.8,40.60841159]
[1642397818699,18.07077588,142.92,142.81,23.0182]
[1642397818700,16.37,142.92,142.81,23.0182]
[1642397818899,16.12,142.92,142.81,23.2682]
[1642397819098,3.98804473,142.91,142.81,93.3182]
[1642397819801,3.98804473,142.91,142.81,99.3182]
[1642397819999,58.88038794,142.94,142.81,99.3182]
[1642397820397,10.4998,142.93,142.81,109.8183]
[1642397820699,10.4998,142.93,142.81,39.7683]
[1642397821498,14.48784473,142.93,142.81,109.8183]
[1642397824807,20.48784473,142.93,142.81,109.8183]
[1642397825007,14.48784473,142.93,142.81,109.8183]
[1642397825411,3.98568797,142.92,142.81,109.8183]
[1642397826110,7.9737327,142.92,142.81,109.8183]
[1642397826709,7.9737327,142.92,142.85,10.4974]
[1642397826910,17.26152087,142.96,142.87,37.0]
[1642397826911,5.98413153,142.96,142.87,37.0]
[1642397827112,5.98413153,142.96,142.88,22.8042]
[1642397827311,59.92581881,143.02,142.9,70.05]
[1642397827510,10.29618574,143.02,142.91,23.6169]
[1642397827710,0.17618574,143.02,142.92,80.5419]
[1642397827917,0.17618574,143.02,142.93,10.38]
[1642397828111,0.17618574,143.02,142.94,70.05]
[1642397828311,9.97664278,143.11,142.94,70.05]
[1642397828312,20.09664278,143.11,142.97,70.05]
[1642397828510,9.97664278,143.11,142.99,0.31272018]
[1642397828711,9.97664278,143.11,143.0,10.12]
[1642397828914,10.4822,143.17,143.01,10.7439]
[1642397829113,10.4822,143.17,143.02,10.12]
[1642397829312,10.4822,143.17,143.02,16.12]
[1642397829512,39.5001388,143.16,143.02,26.72965799]
[1642397829715,39.5001388,143.16,143.02,16.37]
[1642397830116,10.4847,143.14,143.02,16.37]
[1642397830515,16.4847,143.14,143.02,16.37]
[1642397830713,48.76571293,143.13,143.02,16.12]
[1642397830913,124.81571293,143.13,143.01,46.9502]
[1642397831114,10.12,143.12,143.01,46.9502]
[1642397831313,16.12,143.12,143.01,46.9502]
[1642397831513,16.37,143.12,143.01,46.9502]
[1642397831813,10.4865,143.11,143.01,46.9502]
[1642397832017,40.98200141,143.1,143.01,46.9502]
[1642397832216,40.98200141,143.1,142.96,20.608]
[1642397832417,57.35200141,143.1,142.96,26.608]
[1642397832817,57.35200141,143.1,142.96,20.608]
[1642397833449,45.50355724,143.07,142.96,20.608]
[1642397834347,45.50355724,143.07,142.97,14.95211494]
[1642397834549,45.50355724,143.07,142.97,25.43971494]
[1642397834749,45.50355724,143.07,142.97,38.97971494]
[1642397836452,45.50355724,143.07,142.97,31.68971494]
[1642397837751,45.50355724,143.07,142.98,1.2027645]
[1642397837952,45.50355724,143.07,142.98,1.4527645]
[1642397838552,10.4881,143.09,142.98,1.4527645]
[1642397838752,16.4881,143.09,142.98,1.4527645]
[1642397839552,44.44893548,143.08,142.98,1.4527645]
[1642397839852,44.44893548,143.08,142.98,0.25]
[1642397839853,61.18773548,143.08,142.98,0.25]
[1642397840252,61.18773548,143.08,142.97,0.25]
[1642397840453,61.18773548,143.08,142.95,40.685]
[1642397840853,71.30773548,143.08,142.95,40.685]
[1642397841054,71.05773548,143.08,142.95,40.685]
[1642397841354,71.30773548,143.08,142.95,34.685]
[1642397842453,71.30773548,143.08,142.95,24.1959]
[1642397842853,72.75851136,143.08,142.95,24.1959]
[1642397843055,71.05773548,143.08,142.95,24.1959]
[1642397843258,141.10773548,143.08,142.95,24.1959]
[1642397843452,142.80851136,143.08,142.95,24.1959]
[1642397844453,143.05851136,143.08,142.95,24.1959]
[1642397844654,10.4913,143.05,142.95,24.1959]
[1642397844954,38.61226247,143.04,142.95,24.1959]
[1642397845859,49.35396247,143.04,142.95,24.1959]
[1642397846256,49.10396247,143.04,142.95,24.1959]
[1642397848259,49.35396247,143.04,142.95,24.1959]
[1642397848462,49.10396247,143.04,142.95,24.1959]
[1642397853063,49.10396247,143.04,142.9,11.01048449]
[1642397853265,67.17473835,143.04,142.84,45.3345]
[1642397853467,70.05,143.03,142.85,58.533]
[1642397853664,10.4954,142.99,142.85,58.533]
[1642397853865,10.4954,142.99,142.85,65.74045914]
[1642397854063,44.91353229,142.98,142.86,49.61696239]
[1642397854465,44.91353229,142.98,142.86,66.11266239]
[1642397854866,44.91353229,142.98,142.86,66.36266239]
[1642397855863,44.91353229,142.98,142.86,136.41266239]
[1642397857869,50.91353229,142.98,142.86,136.41266239]
[1642397858070,44.91353229,142.98,142.86,136.41266239]
[1642397858869,44.91353229,142.98,142.86,66.36266239]
[1642397859070,55.65963229,142.98,142.86,26.8657]
[1642397859269,61.65963229,142.98,142.86,10.37]
[1642397859970,61.65963229,142.98,142.87,43.3008723]
[1642397860371,61.40963229,142.98,142.87,43.5508723]
[1642397860571,63.3759208,142.98,142.87,43.5508723]
[1642397866482,63.3759208,142.98,142.87,54.0460723]
[1642397867905,57.3759208,142.98,142.87,54.0460723]
[1642397870408,1.96628851,142.97,142.87,54.0460723]
[1642397874310,46.8798208,142.98,142.87,54.0460723]
[1642397874510,46.8798208,142.98,142.88,22.5895]
[1642397874911,46.8798208,142.98,142.88,22.8395]
[1642397875115,1.96628851,142.97,142.88,22.8395]
[1642397879517,1.96628851,142.97,142.88,103.3838]
[1642397879719,1.96628851,142.97,142.89,0.26]
[1642397880118,1.96628851,142.98,142.89,0.26]
[1642397880417,1.96628851,142.98,142.89,10.38]
[1642397880619,1.96628851,142.98,142.9,8.20779578]
[1642397880818,1.96628851,142.98,142.9,37.34239578]
[1642397881020,1.96628851,142.98,142.9,37.59239578]
[1642397881717,36.23747086,142.97,142.9,37.59239578]
[1642397883227,1.96628851,142.99,142.9,48.08539578]
[1642397883423,1.96628851,142.98,142.9,118.13539578]
[1642397884025,1.96628851,142.99,142.9,109.9276]
[1642397884428,36.75096084,142.98,142.9,109.9276]
[1642397886131,124.0,142.97,142.89,10.38]
[1642397886333,0.3119152,142.91,142.87,1.79402533]
[1642397886732,70.05,142.91,142.87,1.79402533]
[1642397886933,57.0,142.89,142.81,0.93236162]
[1642397887132,39.56114427,142.9,142.82,37.76369034]
[1642397887432,12.30568346,142.9,142.82,37.76369034]
[1642397887634,1.55358346,142.9,142.82,37.76369034]
[1642397888233,1.55358346,142.9,142.82,38.01369034]
[1642397891639,45.72388854,142.9,142.82,0.25]
[1642397891840,45.97388854,142.9,142.82,0.25]
[1642397892038,51.97388854,142.9,142.81,48.30716162]
[1642397892638,51.72388854,142.9,142.82,35.71705366]
[1642397892842,51.97388854,142.9,142.82,35.71705366]
[1642397893138,51.97388854,142.9,142.82,35.96705366]
[1642397893539,62.47578854,142.9,142.82,35.96705366]
[1642397893939,62.47578854,142.9,142.82,0.25]
[1642397894340,62.47578854,142.9,142.81,48.30716162]
[1642397895041,62.47578854,142.9,142.81,83.36975689]
[1642397898845,62.47578854,142.9,142.81,48.30716162]
[1642397900970,62.47578854,142.9,142.81,47.3748]
[1642397901570,62.47578854,142.9,142.81,0.25]
[1642397901773,10.12,142.89,142.81,0.25]
[1642397901970,10.5049,142.87,142.77,24.7108]
[1642397902171,26.0679,142.87,142.77,24.7108]
[1642397902371,48.88014748,142.86,142.77,24.7108]
[1642397902573,59.00014748,142.86,142.77,24.7108]
[1642397902773,65.25014748,142.86,142.77,24.7108]
[1642397904372,75.75524748,142.86,142.77,24.7108]
[1642397905773,75.75524748,142.86,142.78,15.81041793]
[1642397906173,75.75524748,142.86,142.78,16.06041793]
[1642397906374,75.75524748,142.86,142.78,0.25]
[1642397907275,75.75524748,142.86,142.77,24.7108]
[1642397907877,75.50524748,142.86,142.77,24.7108]
[1642397908080,75.75524748,142.86,142.77,24.7108]
[1642397908277,77.45602336,142.86,142.77,24.7108]
[1642397908680,75.75524748,142.86,142.77,24.7108]
[1642397910481,145.80524748,142.86,142.77,24.7108]
[1642397915584,145.80524748,142.86,142.78,13.93483398]
[1642397915790,26.6251,142.86,142.78,14.18483398]
[1642397915984,16.12,142.86,142.78,14.18483398]
[1642397916189,10.37,142.86,142.78,14.18483398]
[1642397916791,54.39931003,142.86,142.78,14.18483398]
[1642397917791,10.37,142.86,142.78,14.18483398]
[1642397919197,10.37,142.86,142.78,0.25]
[1642397919398,10.37,142.86,142.77,24.7108]
[1642397920723,16.37,142.86,142.77,24.7108]
[1642397920927,10.37,142.86,142.77,24.7108]
[1642397921727,80.42,142.86,142.77,24.7108]
[1642397921927,86.42,142.86,142.77,24.7108]
[1642397922126,80.42,142.86,142.77,24.7108]
[1642397922527,90.9251,142.86,142.77,24.7108]
[1642397922728,96.9251,142.86,142.77,24.7108]
[1642397926829,26.8751,142.86,142.77,24.7108]
[1642397929544,96.9251,142.86,142.77,24.7108]
[1642397930452,96.9251,142.86,142.77,46.18495933]
[1642397930647,26.8751,142.86,142.77,46.18495933]
[1642397932551,26.6251,142.86,142.77,46.18495933]
[1642397932752,16.12,142.86,142.77,46.18495933]
[1642397932952,6.25,142.86,142.77,46.18495933]
[1642397933756,0.25,142.86,142.77,46.18495933]
[1642397933953,47.55879239,142.87,142.77,46.18495933]
[1642397935557,58.06289239,142.87,142.77,46.18495933]
[1642397938357,127.86289239,142.87,142.77,46.18495933]
[1642397938559,128.11289239,142.87,142.77,46.18495933]
[1642397939261,128.11289239,142.87,142.77,24.7108]
[1642397939460,58.06289239,142.87,142.77,24.7108]
[1642397939858,128.11289239,142.87,142.77,24.7108]
[1642397940458,127.86289239,142.87,142.77,24.7108]
[1642397940660,138.23289239,142.87,142.77,24.7108]
[1642397941058,68.18289239,142.87,142.77,24.7108]
[1642397941661,68.18289239,142.87,142.78,47.9672735]
[1642397941863,57.67879239,142.87,142.79,23.1351]
[1642397942261,57.67879239,142.87,142.79,23.3851]
[1642397942861,57.42879239,142.87,142.79,23.3851]
[1642397943062,16.12,142.87,142.79,23.3851]
[1642397944778,5.53868149,142.9,142.79,29.3851]
[1642397944964,3.98509803,142.9,142.8,0.26]
[1642397945367,3.98509803,142.9,142.8,10.38]
[1642397945564,3.98509803,142.9,142.81,23.507]
[1642397945765,3.98509803,142.9,142.82,14.86885372]
[1642397945986,44.11508187,142.91,142.82,15.37885372]
[1642397946187,7.97673416,142.93,142.82,21.37885372]
[1642397946386,7.97673416,142.93,142.83,23.2269]
[1642397946787,7.97673416,142.93,142.83,23.4769]
[1642397946988,14.10509803,142.94,142.83,23.4769]
[1642397947191,37.58861157,142.92,142.83,29.4769]
[1642397949093,10.12,142.94,142.83,29.4769]
[1642397949290,10.12,142.94,142.84,70.31]
[1642397949490,10.4971,142.97,142.84,70.31]
[1642397949693,10.4971,142.97,142.84,76.56]
[1642397949990,14.10509803,142.98,142.84,76.56]
[1642397949991,14.10509803,142.98,142.84,82.449]
[1642397950192,42.96187191,142.96,142.85,108.31988371]
[1642397950391,42.96187191,142.96,142.86,0.26]
[1642397950593,42.96187191,142.96,142.86,10.7554]
[1642397950791,42.96187191,142.96,142.87,22.6548]
[1642397951195,42.96187191,142.96,142.87,22.9048]
[1642397952792,43.21187191,142.96,142.87,22.9048]
[1642397953896,43.21187191,142.96,142.88,24.56624351]
[1642397954296,43.21187191,142.96,142.88,24.81624351]
[1642397954699,42.96187191,142.96,142.88,24.81624351]
[1642397956401,42.96187191,142.96,142.88,0.25]
[1642397956898,42.96187191,142.96,142.87,22.9048]
[1642397957498,43.21187191,142.96,142.87,58.73285152]
[1642397957898,43.21187191,142.96,142.87,22.9048]
[1642397958898,43.21187191,142.96,142.87,57.96149368]
[1642397959700,49.21187191,142.96,142.87,57.96149368]
[1642397960002,43.21187191,142.96,142.87,57.96149368]
[1642397960199,42.96187191,142.96,142.87,57.96149368]
[1642397960602,10.4967,142.97,142.87,57.96149368]
[1642397960800,11.72920583,142.99,142.87,143.92509368]
[1642397961200,11.97920583,142.99,142.88,0.26]
[1642397961503,40.85022725,142.98,142.88,0.26]
[1642397962101,41.10022725,142.98,142.88,0.26]
[1642397962507,40.85022725,142.98,142.88,10.7545]
[1642397962905,40.85022725,142.98,142.9,27.77943354]
[1642397963307,40.85022725,142.98,142.9,28.02943354]
[1642397963809,1.23380583,142.99,142.9,28.02943354]
[1642397964009,1.23380583,142.99,142.91,22.5872]
[1642397964213,1.48380583,142.99,142.91,22.5872]
[1642397964414,1.48380583,142.99,142.91,22.8372]
[1642397964847,1.23380583,142.99,142.91,33.3297]
[1642397965642,14.10509803,143.02,142.91,33.3297]
[1642397965843,14.10509803,143.02,142.93,10.4914]
[1642397965844,3.98509803,143.02,142.93,10.4914]
[1642397966142,3.98509803,143.02,142.94,24.954]
[1642397966342,3.98509803,143.03,142.94,33.972]
[1642397966642,3.98509803,143.03,142.95,35.05669368]
[1642397966842,3.98509803,143.03,142.95,35.30669368]
[1642397967444,36.91749182,143.04,142.95,45.79659368]
[1642397967648,36.91749182,143.04,142.96,24.168]
[1642397967945,36.91749182,143.04,142.96,24.418]
[1642397970749,42.91749182,143.04,142.96,24.418]
[1642397970946,36.91749182,143.04,142.96,24.418]
[1642397971945,42.91749182,143.04,142.96,24.418]
[1642397972148,37.16749182,143.04,142.96,24.418]
[1642397972349,43.16749182,143.04,142.96,24.168]
[1642397972546,43.16749182,143.04,142.96,24.418]
[1642397972850,42.91749182,143.04,142.96,63.72894276]
[1642397973053,36.91749182,143.04,142.96,63.72894276]
[1642397973353,36.91749182,143.04,142.96,24.418]
[1642397973948,42.91749182,143.04,142.96,24.418]
[1642397974148,36.91749182,143.04,142.96,24.418]
[1642397974650,37.16749182,143.04,142.96,24.418]
[1642397974848,36.91749182,143.04,142.96,24.418]
[1642397975651,42.91749182,143.04,142.96,24.418]
[1642397975850,36.91749182,143.04,142.96,24.418]
[1642397976253,14.47589803,143.05,142.96,24.418]
[1642397976449,16.4908,143.05,142.96,24.418]
[1642397976651,6.0,143.05,142.96,24.418]
[1642397976850,9.98509803,143.06,142.96,24.418]
[1642397977251,6.0,143.06,142.96,24.418]
[1642397977452,9.98509803,143.07,142.96,24.418]
[1642397977651,3.98509803,143.07,142.96,24.418]
[1642397977852,9.98509803,143.07,142.96,24.418]
[1642397978256,6.0,143.07,142.96,24.418]
[1642397978454,45.13851158,143.08,142.96,34.907]
[1642397978858,45.38851158,143.08,142.96,34.907]
[1642397980559,7.95474477,143.07,142.96,34.907]
[1642397980956,14.20474477,143.07,142.96,34.907]
[1642397981759,13.95474477,143.07,142.96,34.907]
[1642397982157,14.20474477,143.07,142.96,34.907]
[1642397982558,10.21964674,143.07,142.96,34.907]
[1642397982759,6.25,143.07,142.96,34.907]
[1642397982965,0.25,143.07,142.96,34.907]
[1642397983161,6.25,143.07,142.96,34.907]
[1642397983760,0.25,143.07,142.96,34.907]
[1642397983959,6.25,143.07,142.96,34.907]
[1642397984359,0.25,143.07,142.96,34.907]
[1642397984560,6.25,143.07,142.96,34.907]
[1642397984761,6.0,143.07,142.96,34.907]
[1642397984961,6.25,143.07,142.96,34.907]
[1642397985160,0.25,143.07,142.96,34.907]
[1642397985361,6.0,143.07,142.96,34.907]
[1642397985764,6.0,143.07,142.97,0.26]
[1642397986062,55.62721158,143.08,142.97,10.7481]
[1642397986261,55.87721158,143.08,142.97,10.4881]
[1642397986463,65.99721158,143.08,142.98,23.3131]
[1642397986861,65.99721158,143.08,142.98,23.5631]
[1642397987461,70.05,143.07,142.98,23.5631]
[1642397987664,20.6099,143.06,142.98,23.5631]
[1642397987862,44.99597417,143.05,142.98,23.5631]
[1642397988262,50.99597417,143.05,142.98,23.5631]
[1642397993701,50.99597417,143.05,142.98,48.74816065]
[1642397993896,50.99597417,143.05,142.98,23.5631]
[1642397994296,54.9810722,143.05,142.98,23.5631]
[1642397998005,9.98509803,143.05,142.99,20.8567532]
[1642397998405,9.98509803,143.05,142.99,21.1067532]
[1642397999210,9.98509803,143.05,142.99,0.25]
[1642397999409,9.98509803,143.05,142.98,34.0508]
[1642397999707,9.98509803,143.05,142.98,0.25]
[1642397999906,9.98509803,143.05,142.96,10.7388]
[1642398000108,6.0,143.05,142.96,10.7388]
[1642398000307,50.62934712,143.06,142.96,10.7388]
[1642398000514,6.0,143.05,142.97,23.4266]
[1642398000710,50.87934712,143.06,142.97,23.4266]
[1642398000908,50.87934712,143.06,142.97,23.6766]
[1642398001107,7.97238647,143.05,142.97,23.6766]
[1642398001311,13.97238647,143.05,142.97,23.6766]
[1642398001619,14.22238647,143.05,142.93,22.979]
[1642398001808,11.82077588,143.04,142.93,22.979]
[1642398002008,81.87077588,143.04,142.93,23.229]
[1642398002244,88.12077588,143.04,142.93,23.229]
[1642398002610,35.47320362,143.03,142.93,23.229]
[1642398002810,3.98509803,143.02,142.93,23.229]
[1642398003010,3.98509803,143.02,142.94,22.9046]
[1642398003209,4.23509803,143.02,142.95,14.66465964]
[1642398003413,4.23509803,143.02,142.95,0.25]
[1642398003809,8.2237751,143.02,142.95,0.25]
[1642398004711,3.98509803,143.02,142.94,23.1546]
[1642398005311,3.98605818,143.02,142.94,23.1546]
[1642398005711,10.23605818,143.02,142.94,23.1546]
[1642398005911,4.23605818,143.02,142.94,23.1546]
[1642398007214,1.99305048,143.0,142.94,23.1546]
[1642398007412,46.96659801,143.0,142.94,23.1546]
[1642398007811,1.99305048,142.99,142.94,23.1546]
[1642398010419,41.46588981,142.99,142.94,23.1546]
[1642398011822,41.46588981,142.99,142.94,0.25]
[1642398012220,47.71588981,142.99,142.9,0.25]
[1642398012418,52.21118981,142.99,142.89,34.2435]
[1642398012818,52.21118981,142.99,142.9,22.6178]
[1642398013218,1.99305048,142.98,142.9,22.8678]
[1642398013418,2.24305048,142.98,142.9,22.6178]
[1642398014321,1.99305048,142.97,142.9,22.6178]
[1642398014818,1.99305048,142.97,142.9,22.8678]
[1642398015623,1.99305048,142.98,142.9,22.8678]
[1642398016025,2.24305048,142.98,142.9,22.8678]
[1642398017724,1.99305048,142.98,142.9,22.8678]
[1642398019326,47.29318431,143.0,142.9,22.8678]
[1642398019327,1.99305048,142.99,142.9,22.8678]
[1642398023231,1.99305048,142.98,142.9,22.8678]
[1642398024531,43.24320223,142.97,142.9,22.8678]
[1642398025636,1.99305048,142.98,142.9,22.6178]
[1642398025838,0.25,142.97,142.9,22.6178]
[1642398026037,0.25,142.97,142.87,22.5937]
[1642398026543,2.24305048,142.97,142.87,22.5937]
[1642398026740,41.06587846,142.97,142.88,39.47349466]
[1642398026941,47.06587846,142.97,142.88,39.47349466]
[1642398027140,47.06587846,142.97,142.88,39.72349466]
[1642398027543,57.56257846,142.97,142.88,0.25]
[1642398027740,12.11305048,142.96,142.88,0.25]
[1642398027939,26.38005048,142.96,142.87,22.8437]
[1642398028140,28.08082636,142.96,142.87,22.8437]
[1642398028550,28.08082636,142.96,142.85,63.6426433]
[1642398028942,28.08082636,142.96,142.85,23.1301]
[1642398029142,1.99305048,142.95,142.85,23.1301]
[1642398029342,18.49125048,142.95,142.85,23.1301]
[1642398029542,18.74125048,142.95,142.85,23.1301]
[1642398029945,37.71944447,142.94,142.85,23.3801]
[1642398030146,1.99305048,142.92,142.85,23.3801]
[1642398030344,42.66848001,142.91,142.85,23.3801]
[1642398030546,42.66848001,142.91,142.85,0.25]
[1642398030749,42.91848001,142.91,142.85,0.25]
[1642398030946,42.91848001,142.91,142.81,36.74297748]
[1642398031146,42.91848001,142.91,142.81,25.99297748]
[1642398031347,42.91848001,142.91,142.81,24.0074]
[1642398031646,10.5025,142.89,142.81,24.0074]
[1642398031849,41.68362007,142.88,142.81,24.0074]
[1642398032274,41.93362007,142.88,142.81,24.0074]
[1642398033375,41.93362007,142.88,142.81,24.2574]
[1642398036479,0.25,142.88,142.81,24.2574]
[1642398036679,10.7525,142.89,142.81,24.2574]
[1642398037479,42.32101885,142.88,142.81,24.2574]
[1642398037883,42.57101885,142.88,142.81,24.2574]
[1642398038582,10.5025,142.89,142.81,24.2574]
[1642398038781,16.5025,142.89,142.81,24.2574]
[1642398040383,16.7525,142.89,142.81,24.2574]
[1642398042385,6.25,142.89,142.81,24.2574]
[1642398042584,10.5012,142.91,142.81,24.2574]
[1642398042787,1.99305048,142.93,142.82,24.0927]
[1642398043188,7.99305048,142.93,142.82,24.3427]
[1642398043520,47.00149466,142.92,142.82,24.3427]
[1642398043987,53.00149466,142.92,142.82,24.3427]
[1642398044186,53.25149466,142.92,142.82,24.3427]
[1642398053297,55.24454514,142.92,142.82,24.3427]
[1642398054097,54.24454514,142.92,142.82,24.3427]
[1642398054298,54.24454514,142.92,142.83,24.63673198]
[1642398054802,54.24454514,142.92,142.83,24.88673198]
[1642398054997,1.99305048,142.91,142.83,0.25]
[1642398055399,8.24305048,142.91,142.83,0.25]
[1642398055998,8.24305048,142.91,142.82,24.6357]
[1642398056202,8.24305048,142.91,142.82,71.14777035]
[1642398057198,18.74415048,142.91,142.82,24.6357]
[1642398057402,88.79415048,142.91,142.82,24.6357]
[1642398058100,1.99305048,142.89,142.82,24.6357]
[1642398058401,62.05535602,142.89,142.82,66.18523713]
[1642398058828,62.05535602,142.89,142.82,24.6357]
[1642398060126,7.99305048,142.89,142.82,24.6357]
[1642398065829,8.24305048,142.89,142.82,24.3857]
[1642398066028,36.5429403,142.88,142.82,24.3857]
[1642398066829,42.5429403,142.88,142.82,24.3857]
[1642398067229,42.5429403,142.88,142.82,24.6357]
[1642398067430,44.53599078,142.88,142.82,24.6357]
[1642398067631,44.53599078,142.88,142.82,67.40945655]
[1642398068530,44.53599078,142.88,142.82,24.6357]
[1642398068931,42.5429403,142.88,142.82,24.6357]
[1642398075540,44.53599078,142.88,142.82,24.6357]
[1642398075742,7.99305048,142.88,142.82,24.6357]
[1642398076341,6.0,142.88,142.82,24.6357]
[1642398076540,18.74555048,142.89,142.82,24.6357]
[1642398076742,46.06503576,142.88,142.82,24.6357]
[1642398077044,52.06503576,142.88,142.82,24.6357]
[1642398077241,6.0,142.88,142.82,24.6357]
[1642398077940,18.49555048,142.89,142.82,24.6357]
[1642398078139,7.99305048,142.89,142.82,24.6357]
[1642398078341,7.99305048,142.89,142.83,26.23013147]
[1642398078541,7.99305048,142.89,142.82,24.6357]
[1642398079342,8.24305048,142.89,142.82,24.6357]
[1642398079540,7.99305048,142.89,142.82,62.05608187]
[1642398081243,8.24305048,142.89,142.82,62.05608187]
[1642398081443,8.24305048,142.89,142.82,24.3857]
[1642398081945,1.99305048,142.88,142.82,24.3857]
[1642398082349,7.99305048,142.88,142.82,24.3857]